bitfinex/quotes_BTCUSD_20230904
["timestamp","ask_amount","ask_price","bid_price","bid_amount"]
[1693866458647,0.1522,25742.0,25741.0,0.0847]
[1693866458868,0.09306535,25744.0,25741.0,0.14721838]
[1693866458983,0.1522,25743.0,25742.0,0.14721838]
[1693866459185,0.1522,25743.0,25742.0,0.0847]
[1693866460221,0.1722,25743.0,25742.0,0.0867]
[1693866460821,0.1722,25743.0,25742.0,0.0887]
[1693866461207,0.1852,25743.0,25742.0,0.0887]
[1693866462044,0.41909267,25746.0,25742.0,0.47534527]
[1693866462243,0.18614629,25748.0,25744.0,0.4084]
[1693866462452,0.1396041,25750.0,25745.0,1.15756365]
[1693866462453,0.0930694,25750.0,25745.0,1.15756365]
[1693866462657,0.44579809,25753.0,25745.0,1.15756365]
[1693866462658,0.157,25752.0,25746.0,1.17158958]
[1693866462866,0.2596518,25753.0,25747.0,0.74916365]
[1693866463074,0.21105471,25752.0,25748.0,0.04753453]
[1693866463290,0.21105471,25752.0,25751.0,0.0847]
[1693866464112,0.22903704,25752.0,25751.0,0.0847]
[1693866464526,0.1766,25753.0,25751.0,0.0847]
[1693866464731,0.1766,25753.0,25751.0,0.0867]
[1693866465356,0.1766,25753.0,25751.0,0.0847]
[1693866465568,0.1766,25753.0,25751.0,0.0867]
[1693866465751,0.1766,25753.0,25751.0,0.0847]
[1693866466155,0.1766,25753.0,25751.0,0.0867]
[1693866466627,0.1766,25753.0,25751.0,0.0887]
[1693866471715,0.1766,25753.0,25751.0,0.004]
[1693866472949,0.01279864,25752.0,25751.0,0.004]
[1693866473805,0.01279864,25752.0,25751.0,0.002]
[1693866474245,0.01279864,25752.0,25751.0,0.004]
[1693866474449,0.01279864,25752.0,25751.0,0.002]
[1693866475190,0.01279864,25752.0,25751.0,0.004]
[1693866484540,0.30729865,25752.0,25751.0,0.004]
[1693866499998,0.39944391,25752.0,25751.0,0.004]
[1693866500211,0.64295964,25752.0,25751.0,0.004]
[1693866500406,0.39944391,25752.0,25751.0,0.004]
[1693866500607,0.66885079,25752.0,25751.0,0.004]
[1693866501846,0.76192019,25752.0,25751.0,0.004]
[1693866503568,0.90152429,25752.0,25751.0,0.004]
[1693866504529,0.80845489,25752.0,25751.0,0.004]
[1693866506602,1.31399635,25752.0,25751.0,0.004]
[1693866507604,1.35954578,25752.0,25751.0,0.004]
[1693866512708,1.36325326,25752.0,25751.0,0.004]
[1693866513469,1.54955061,25752.0,25751.0,0.004]
[1693866515057,1.54955061,25752.0,25746.0,0.08409003]
[1693866515258,0.0931452,25750.0,25746.0,0.08409003]
[1693866515429,0.24780331,25750.0,25746.0,0.08409003]
[1693866515834,0.0931452,25750.0,25747.0,0.00029809]
[1693866516510,0.65770213,25751.0,25747.0,0.00029809]
[1693866516731,0.0931452,25750.0,25747.0,0.00029809]
[1693866517198,0.0931452,25750.0,25747.0,0.02429809]
[1693866517586,0.23719155,25749.0,25747.0,0.02429809]
[1693866517801,0.23719155,25749.0,25747.0,0.04529809]
[1693866518014,0.01641303,25748.0,25747.0,0.02429809]
[1693866518156,0.01641303,25748.0,25747.0,0.04929809]
[1693866518574,0.01641303,25748.0,25747.0,0.02429809]
[1693866518771,0.01641303,25748.0,25747.0,0.04929809]
[1693866518971,0.01641303,25748.0,25747.0,0.02529809]
[1693866519402,0.01641303,25748.0,25747.0,0.04929809]
[1693866519802,0.01641303,25748.0,25747.0,0.02529809]
[1693866520126,0.01641303,25748.0,25747.0,0.04929809]
[1693866520517,0.01641303,25748.0,25747.0,0.02429809]
[1693866520689,0.01641303,25748.0,25747.0,0.04929809]
[1693866521535,0.28801784,25748.0,25747.0,0.04929809]
[1693866532504,0.01641303,25748.0,25747.0,0.04929809]
[1693866532702,0.28976635,25750.0,25747.0,0.04929809]
[1693866533058,0.01614673,25749.0,25747.0,0.04929809]
[1693866533464,0.01614673,25749.0,25747.0,0.00029809]
[1693866533910,0.01614673,25749.0,25747.0,0.04929809]
[1693866534144,0.01614673,25749.0,25747.0,0.02429809]
[1693866534565,0.01614673,25749.0,25747.0,0.04929809]
[1693866535579,0.01614673,25749.0,25747.0,0.02529809]
[1693866535927,0.01614673,25749.0,25747.0,0.04929809]
[1693866540642,0.2385434,25749.0,25747.0,0.04929809]
[1693866540848,0.27858653,25748.0,25747.0,0.04929809]
[1693866541728,0.27858653,25748.0,25747.0,0.02529809]
[1693866541931,0.27858653,25748.0,25747.0,0.04929809]
[1693866542805,0.27858653,25748.0,25747.0,0.02429809]
[1693866543202,0.27858653,25748.0,25747.0,0.04929809]
[1693866543650,0.27858653,25748.0,25747.0,0.07201502]
[1693866547290,0.17764673,25749.0,25747.0,0.07201502]
[1693866548087,0.17764673,25749.0,25747.0,0.04801502]
[1693866548456,0.17764673,25749.0,25747.0,0.07201502]
[1693866549476,0.17764673,25749.0,25747.0,0.04701502]
[1693866549677,0.17764673,25749.0,25747.0,0.07201502]
[1693866556752,0.17764673,25749.0,25747.0,0.07171693]
[1693866561079,0.01614673,25749.0,25748.0,0.0847]
[1693866561287,0.01614673,25749.0,25748.0,0.51653708]
[1693866561492,0.232863,25752.0,25748.0,0.59357708]
[1693866561697,0.0931452,25752.0,25750.0,0.0847]
[1693866561902,0.01615431,25751.0,25750.0,0.0847]
[1693866562110,0.01615431,25751.0,25750.0,0.13961807]
[1693866563688,0.01815431,25751.0,25750.0,0.13961807]
[1693866564104,0.02015431,25751.0,25750.0,0.13961807]
[1693866564921,0.01815431,25751.0,25750.0,0.13961807]
[1693866565349,0.01615431,25751.0,25750.0,0.14561807]
[1693866565835,0.50729133,25753.0,25750.0,0.14561807]
[1693866566012,0.01615918,25751.0,25750.0,0.14561807]
[1693866566521,0.50729133,25753.0,25750.0,0.14561807]
[1693866566721,0.252463,25753.0,25750.0,0.52626334]
[1693866566875,0.1127452,25753.0,25751.0,0.04519181]
[1693866567117,0.1147452,25753.0,25751.0,0.04519181]
[1693866567785,0.1127452,25753.0,25751.0,0.04519181]
[1693866567991,0.1157452,25753.0,25751.0,0.04619181]
[1693866568193,0.1147452,25753.0,25751.0,0.04519181]
[1693866568344,0.1147452,25753.0,25752.0,0.05165371]
[1693866568545,0.0931472,25754.0,25752.0,0.53386365]
[1693866568797,0.25129572,25756.0,25752.0,0.53386365]
[1693866568798,0.0196,25756.0,25754.0,0.4084]
[1693866568998,0.0196,25759.0,25755.0,0.95056415]
[1693866569202,0.0196,25759.0,25756.0,0.09298738]
[1693866569404,0.0196,25759.0,25757.0,0.44916365]
[1693866569636,0.0196,25759.0,25758.0,0.3]
[1693866569963,0.0196,25759.0,25758.0,0.76422527]
[1693866570166,0.0196,25759.0,25758.0,0.76296527]
[1693866570379,0.0196,25759.0,25758.0,0.76206527]
[1693866570572,0.0196,25759.0,25758.0,0.68664527]
[1693866570710,0.0196,25759.0,25758.0,0.77134527]
[1693866571320,0.0196,25759.0,25758.0,0.82134527]
[1693866572313,0.0196,25759.0,25758.0,0.89376527]
[1693866572522,0.0196,25759.0,25758.0,0.82134527]
[1693866573454,0.0196,25759.0,25758.0,0.90120527]
[1693866573878,0.0196,25759.0,25758.0,0.90540527]
[1693866574038,0.0196,25761.0,25758.0,1.31392527]
[1693866574241,0.0196,25763.0,25760.0,0.5778]
[1693866574468,0.0196,25763.0,25762.0,0.0847]
[1693866574719,0.0196,25763.0,25762.0,0.47134527]
[1693866574920,0.0196,25763.0,25762.0,0.77134527]
[1693866575123,0.0351607,25763.0,25762.0,0.77134527]
[1693866577230,0.0351607,25763.0,25762.0,0.82134527]
[1693866580520,0.48790438,25763.0,25762.0,0.05]
[1693866580940,0.33324627,25763.0,25762.0,0.05]
[1693866582720,0.33324627,25763.0,25762.0,0.04728154]
[1693866583657,1.58089854,25763.0,25762.0,0.04728154]
[1693866583856,2.35720554,25763.0,25762.0,0.04728154]
[1693866584615,2.27250554,25763.0,25762.0,0.04728154]
[1693866585045,2.27250554,25763.0,25762.0,0.02228154]
[1693866585246,2.27250554,25763.0,25758.0,0.0847]
[1693866585455,2.57906365,25763.0,25762.0,0.012]
[1693866585665,2.42440554,25763.0,25762.0,0.018]
[1693866586108,2.42440554,25763.0,25762.0,0.012]
[1693866586519,2.42540554,25763.0,25762.0,0.012]
[1693866586760,2.42540554,25763.0,25758.0,0.1097]
[1693866586959,2.57906365,25763.0,25758.0,0.1097]
[1693866587344,2.57906365,25763.0,25762.0,0.006]
[1693866587554,2.42440554,25763.0,25762.0,0.018]
[1693866587952,2.42440554,25763.0,25762.0,0.006]
[1693866588537,2.42440554,25763.0,25758.0,0.1097]
[1693866588739,2.58006365,25763.0,25758.0,0.1347]
[1693866588915,2.58006365,25763.0,25758.0,0.1097]
[1693866589321,2.57906365,25763.0,25758.0,0.0847]
[1693866589524,2.57906365,25763.0,25762.0,0.006]
[1693866589747,2.42440554,25763.0,25762.0,0.006]
[1693866589967,2.42440554,25763.0,25758.0,0.0847]
[1693866590200,2.57906365,25763.0,25758.0,0.0847]
[1693866590396,0.21737003,25762.0,25758.0,0.1097]
[1693866590980,0.01543293,25761.0,25758.0,0.1097]
[1693866591380,0.17033293,25761.0,25758.0,0.1347]
[1693866591601,0.17033293,25761.0,25758.0,0.0847]
[1693866591803,0.17033293,25761.0,25758.0,0.1097]
[1693866592001,0.17033293,25761.0,25758.0,0.1347]
[1693866592321,0.17033293,25761.0,25758.0,0.0847]
[1693866592529,0.17033293,25761.0,25758.0,0.1097]
[1693866592732,0.17133293,25761.0,25758.0,0.1347]
[1693866595542,0.42802566,25761.0,25758.0,0.1347]
[1693866595739,0.27336223,25760.0,25758.0,0.1347]
[1693866595940,0.27336223,25760.0,25758.0,0.05]
[1693866596233,0.01497425,25759.0,25758.0,0.05]
[1693866596547,0.01497425,25759.0,25758.0,0.025]
[1693866596797,0.01497425,25759.0,25757.0,0.0847]
[1693866597004,0.01497425,25759.0,25758.0,0.025]
[1693866597151,0.01497425,25759.0,25758.0,0.05]
[1693866597357,0.01497425,25759.0,25758.0,0.025]
[1693866597808,0.01497425,25759.0,25758.0,0.05]
[1693866598363,0.01497425,25759.0,25758.0,0.025]
[1693866598566,0.01597425,25759.0,25758.0,0.05]
[1693866600410,0.29384788,25759.0,25758.0,0.05]
[1693866602393,1.07027488,25759.0,25758.0,0.05]
[1693866602579,1.54162015,25759.0,25758.0,0.05]
[1693866603002,1.54062015,25759.0,25758.0,0.025]
[1693866603223,1.54062015,25759.0,25752.0,0.0847]
[1693866603436,1.54062015,25759.0,25758.0,0.05]
[1693866603437,2.04017352,25759.0,25758.0,0.05]
[1693866604297,2.04017352,25759.0,25758.0,0.025]
[1693866604405,3.01350909,25759.0,25758.0,0.025]
[1693866604630,0.22632807,25758.0,25753.0,0.3240017]
[1693866604838,0.38098618,25758.0,25753.0,0.3]
[1693866605042,0.38098618,25758.0,25752.0,0.3847]
[1693866605555,0.38098618,25758.0,25752.0,0.44721838]
[1693866605769,0.38198618,25758.0,25753.0,0.025]
[1693866605970,0.22732807,25758.0,25753.0,0.325]
[1693866606447,0.22632807,25758.0,25753.0,0.3]
[1693866607011,0.22632807,25758.0,25753.0,0.36251838]
[1693866607216,0.22632807,25758.0,25753.0,0.47221838]
[1693866607617,0.22732807,25758.0,25753.0,0.4097]
[1693866608147,0.22632807,25758.0,25753.0,0.4097]
[1693866608497,0.22732807,25758.0,25753.0,0.4347]
[1693866608767,0.2433411,25757.0,25753.0,0.4347]
[1693866609323,0.39799921,25757.0,25753.0,0.35]
[1693866609540,0.3280411,25757.0,25753.0,0.325]
[1693866609779,0.3280411,25757.0,25753.0,0.025]
[1693866609985,0.3280411,25757.0,25752.0,0.3]
[1693866610208,0.48269921,25757.0,25751.0,0.0847]
[1693866610620,0.48269921,25757.0,25753.0,0.025]
[1693866610819,0.3280411,25757.0,25753.0,0.025]
[1693866611029,0.3290411,25757.0,25753.0,0.025]
[1693866611834,0.22671212,25756.0,25753.0,0.05]
[1693866612587,0.22671212,25756.0,25753.0,0.025]
[1693866613032,0.22671212,25756.0,25752.0,0.3847]
[1693866613387,0.22671212,25756.0,25753.0,0.025]
[1693866613645,0.01486679,25755.0,25753.0,0.025]
[1693866614446,0.01486679,25755.0,25753.0,0.05]
[1693866614649,0.01486679,25755.0,25754.0,0.0847]
[1693866615040,0.01486679,25755.0,25754.0,0.55276527]
[1693866615256,0.001,25755.0,25754.0,0.55228527]
[1693866615479,0.001,25755.0,25754.0,0.55120527]
[1693866615660,0.001,25755.0,25754.0,0.54952527]
[1693866615862,0.28368926,25761.0,25754.0,0.55558527]
[1693866616091,0.28368926,25761.0,25757.0,0.0847]
[1693866616389,0.01485202,25760.0,25757.0,0.14721838]
[1693866616588,0.01485202,25760.0,25757.0,0.0847]
[1693866617408,0.24236951,25760.0,25755.0,0.0847]
[1693866617618,0.39702762,25760.0,25757.0,0.001]
[1693866617823,0.24236951,25760.0,25757.0,0.001]
[1693866617974,0.24236951,25760.0,25755.0,0.0847]
[1693866618183,0.40102762,25760.0,25755.0,0.0847]
[1693866618607,0.24636951,25760.0,25757.0,0.0847]
[1693866619370,0.24236951,25760.0,25757.0,0.0847]
[1693866620461,0.24636951,25760.0,25757.0,0.0847]
[1693866620995,0.24836951,25760.0,25757.0,0.0847]
[1693866621334,0.24636951,25760.0,25757.0,0.0847]
[1693866621539,0.25536951,25760.0,25757.0,0.0857]
[1693866621965,0.24636951,25760.0,25757.0,0.0847]
[1693866622414,0.24836951,25760.0,25757.0,0.0847]
[1693866622629,0.24436951,25760.0,25757.0,0.0847]
[1693866622828,0.24436951,25760.0,25757.0,0.0967]
[1693866624300,0.24236951,25760.0,25757.0,0.0967]
[1693866624759,0.24236951,25760.0,25757.0,0.1027]
[1693866625780,0.28488506,25759.0,25757.0,0.1027]
[1693866625985,0.29981133,25759.0,25757.0,0.1027]
[1693866626606,0.29981133,25759.0,25757.0,0.0847]
[1693866627023,0.29981133,25759.0,25757.0,0.1057]
[1693866628252,0.30081133,25759.0,25757.0,0.1207]
[1693866628776,0.21923335,25758.0,25757.0,0.036]
[1693866629829,0.21923335,25758.0,25753.0,0.17733868]
[1693866629954,0.163,25757.0,25753.0,0.17733868]
[1693866630160,0.31765811,25757.0,25753.0,0.17733868]
[1693866630601,0.163,25757.0,25753.0,0.17733868]
[1693866631633,0.163,25757.0,25753.0,0.20233868]
[1693866631991,0.164,25757.0,25753.0,0.22733868]
[1693866632162,0.40608506,25757.0,25753.0,0.22733868]
[1693866636436,0.40608506,25757.0,25754.0,0.0847]
[1693866637874,0.40508506,25757.0,25754.0,0.0847]
[1693866638035,0.40608506,25757.0,25754.0,0.1097]
[1693866638633,0.28098093,25756.0,25754.0,0.025]
[1693866638846,0.28098093,25756.0,25754.0,0.05]
[1693866639271,0.28098093,25756.0,25754.0,0.025]
[1693866639900,0.28198093,25756.0,25754.0,0.05]
[1693866640495,0.0149226,25755.0,25754.0,0.05]
[1693866641494,0.0149226,25755.0,25754.0,0.025]
[1693866641694,0.0149226,25755.0,25754.0,0.049]
[1693866641893,0.0149226,25755.0,25754.0,0.024]
[1693866642095,0.0159226,25755.0,25754.0,0.049]
[1693866642299,0.0159226,25755.0,25754.0,0.025]
[1693866642467,0.0169226,25755.0,25754.0,0.049]
[1693866643110,1.94087788,25755.0,25754.0,0.049]
[1693866644510,1.93987788,25755.0,25754.0,0.025]
[1693866645088,1.94087788,25755.0,25754.0,0.047]
[1693866645288,1.93987788,25755.0,25754.0,0.022]
[1693866645497,1.94087788,25755.0,25754.0,0.038]
[1693866649134,2.04136387,25755.0,25754.0,0.038]
[1693866649356,3.0353917,25755.0,25754.0,0.038]
[1693866649572,3.128174,25755.0,25754.0,0.038]
[1693866650259,3.0353917,25755.0,25754.0,0.038]
[1693866650459,3.0343917,25755.0,25754.0,0.022]
[1693866650884,3.0443917,25755.0,25754.0,0.023]
[1693866651085,3.0433917,25755.0,25754.0,0.001]
[1693866651304,3.0333917,25755.0,25747.0,0.23159671]
[1693866651511,2.57304643,25755.0,25754.0,0.002]
[1693866651716,2.65974643,25755.0,25754.0,0.002]
[1693866652118,2.64674643,25755.0,25747.0,0.23159671]
[1693866652341,0.0847,25752.0,25747.0,0.09263868]
[1693866652589,0.15465811,25751.0,25747.0,0.09263868]
[1693866653370,0.34691681,25752.0,25747.0,0.09263868]
[1693866653569,0.41687492,25752.0,25747.0,0.09263868]
[1693866653927,0.41787492,25752.0,25747.0,0.11763868]
[1693866654133,0.26321681,25752.0,25747.0,0.11763868]
[1693866654555,0.26421681,25752.0,25747.0,0.14263868]
[1693866655311,0.31076194,25751.0,25747.0,0.14263868]
[1693866655517,0.2802925,25750.0,25747.0,0.05]
[1693866656386,1.555298,25752.0,25747.0,0.05]
[1693866656591,1.94194327,25752.0,25748.0,0.02273387]
[1693866656796,2.15343635,25752.0,25748.0,0.02273387]
[1693866657215,0.001,25751.0,25748.0,0.02273387]
[1693866657642,1.93020136,25755.0,25748.0,0.10743387]
[1693866657846,2.31684263,25755.0,25749.0,0.08252564]
[1693866658047,0.001,25750.0,25749.0,0.08252564]
[1693866658294,0.001,25752.0,25749.0,0.02000726]
[1693866658494,0.22684532,25754.0,25749.0,0.02000726]
[1693866658694,0.001,25751.0,25749.0,0.08252564]
[1693866658804,0.22684532,25754.0,25749.0,0.02000726]
[1693866659005,0.22684532,25754.0,25749.0,0.10452564]
[1693866659006,0.001,25750.0,25749.0,0.10452564]
[1693866659253,0.001,25750.0,25749.0,0.04200726]
[1693866659431,0.22684532,25754.0,25749.0,0.02000726]
[1693866659634,0.22684532,25754.0,25749.0,0.08252564]
[1693866660011,1.00342732,25754.0,25749.0,0.02000726]
[1693866660211,1.00342732,25754.0,25749.0,0.08252564]
[1693866660430,1.00342732,25754.0,25749.0,0.02700726]
[1693866660631,0.2839959,25753.0,25749.0,0.02700726]
[1693866660840,0.2839959,25753.0,25749.0,0.02000726]
[1693866661238,0.2839959,25753.0,25749.0,0.02100726]
[1693866661663,0.2839959,25753.0,25749.0,0.02000726]
[1693866661895,0.2849959,25753.0,25749.0,0.02500726]
[1693866663285,0.23648518,25752.0,25749.0,0.02500726]
[1693866664226,0.23648518,25752.0,25749.0,0.02000726]
[1693866664540,0.23748518,25752.0,25749.0,0.04000726]
[1693866665328,1.40077045,25752.0,25749.0,0.04000726]
[1693866665972,0.24250401,25751.0,25749.0,0.04000726]
[1693866667014,0.24250401,25751.0,25749.0,0.03300726]
[1693866667189,0.24350401,25751.0,25749.0,0.016]
[1693866667593,0.24350401,25751.0,25749.0,0.038]
[1693866667594,0.24450401,25751.0,25749.0,0.038]
[1693866668567,0.28421115,25750.0,25749.0,0.038]
[1693866669414,0.28421115,25750.0,25749.0,0.022]
[1693866669834,0.28521115,25750.0,25749.0,0.038]
[1693866670274,0.29990588,25750.0,25749.0,0.016]
[1693866670692,0.30090588,25750.0,25749.0,0.038]
[1693866680598,0.01669473,25750.0,25749.0,0.038]
[1693866685861,0.30269767,25750.0,25749.0,0.038]
[1693866693919,0.01669473,25750.0,25749.0,0.038]
[1693866698347,0.26498678,25750.0,25749.0,0.038]
[1693866699906,0.40334,25750.0,25749.0,0.038]
[1693866700093,2.19609611,25750.0,25749.0,0.038]
[1693866700308,3.33952331,25750.0,25749.0,0.038]
[1693866700512,4.41765357,25750.0,25749.0,0.038]
[1693866700722,3.77277321,25750.0,25749.0,0.038]
[1693866700926,4.23708549,25750.0,25749.0,0.016]
[1693866701147,3.95774584,25750.0,25741.0,0.19485726]
[1693866701345,0.0847,25746.0,25741.0,0.20192772]
[1693866701543,0.0847,25746.0,25741.0,0.13940934]
[1693866701544,0.54130338,25745.0,25741.0,0.13940934]
[1693866701754,0.71804515,25745.0,25741.0,0.13940934]
[1693866702376,0.56338704,25745.0,25741.0,0.13940934]
[1693866702584,0.29991787,25744.0,25741.0,0.15340934]
[1693866702981,0.29991787,25744.0,25741.0,0.17540934]
[1693866703501,0.29991787,25744.0,25741.0,0.022]
[1693866703683,0.29991787,25744.0,25740.0,0.22410934]
[1693866703878,0.29991787,25744.0,25740.0,0.0847]
[1693866704223,0.45571787,25744.0,25740.0,0.0847]
[1693866704395,0.84336314,25744.0,25741.0,0.025]
[1693866704593,0.29042173,25743.0,25741.0,0.025]
[1693866704803,0.29042173,25743.0,25741.0,0.048]
[1693866705409,0.29042173,25743.0,25741.0,0.025]
[1693866705616,0.29242173,25743.0,25741.0,0.048]
[1693866706271,0.29242173,25743.0,25741.0,0.023]
[1693866707055,0.29342173,25743.0,25741.0,0.048]
[1693866707459,0.25183602,25742.0,25741.0,0.048]
[1693866708265,0.25183602,25742.0,25741.0,0.025]
[1693866708896,0.25383602,25742.0,25741.0,0.048]
[1693866709659,0.25383602,25742.0,25741.0,0.023]
[1693866709859,0.25483602,25742.0,25741.0,0.048]
[1693866715457,0.27227675,25742.0,25741.0,0.048]
[1693866716277,0.02044073,25742.0,25741.0,0.048]
[1693866716842,0.003,25742.0,25741.0,0.048]
[1693866717049,0.02044073,25742.0,25741.0,0.048]
[1693866720418,0.26985888,25742.0,25741.0,0.048]
[1693866722126,0.02044073,25742.0,25741.0,0.1327]
[1693866722334,0.003,25742.0,25741.0,0.1327]
[1693866740911,0.02045945,25742.0,25741.0,0.1327]
[1693866741321,0.02045945,25742.0,25741.0,0.22568087]
[1693866743701,0.02045945,25742.0,25741.0,0.36509021]
[1693866744154,0.02045945,25742.0,25741.0,0.27210934]
[1693866744769,0.02045945,25742.0,25741.0,0.45811413]
[1693866744966,0.02045945,25742.0,25741.0,0.27210934]
[1693866745209,0.02045945,25742.0,25741.0,0.14114244]
[1693866745572,0.28171864,25742.0,25741.0,0.28055178]
[1693866745771,0.28171864,25742.0,25741.0,0.14114244]
[1693866746346,0.28171864,25742.0,25741.0,0.048]
[1693866751792,1.81517867,25742.0,25741.0,0.048]
[1693866751994,2.30694391,25742.0,25741.0,0.048]
[1693866752422,3.08388391,25742.0,25741.0,0.048]
[1693866752632,3.08388391,25742.0,25741.0,0.025]
[1693866752633,3.08188391,25742.0,25741.0,0.025]
[1693866752859,3.08088391,25742.0,25741.0,0.014]
[1693866753040,3.08188391,25742.0,25741.0,0.014]
[1693866753242,3.08288391,25742.0,25741.0,0.037]
[1693866753388,3.08088391,25742.0,25737.0,0.23284998]
[1693866753593,2.02530227,25741.0,25737.0,0.23284998]
[1693866753804,2.3518101,25741.0,25737.0,0.23284998]
[1693866754263,2.19715199,25741.0,25737.0,0.09344064]
[1693866754854,0.28992571,25740.0,25737.0,0.09344064]
[1693866755247,0.44432571,25740.0,25737.0,0.0002982]
[1693866755455,0.44432571,25740.0,25737.0,0.0252982]
[1693866755619,1.22132971,25740.0,25737.0,0.0252982]
[1693866755843,1.22132971,25740.0,25737.0,0.0502982]
[1693866756168,1.22132971,25740.0,25737.0,0.0002982]
[1693866756298,1.22332971,25740.0,25737.0,1.14465357]
[1693866756567,1.22432971,25740.0,25737.0,0.0502982]
[1693866757721,0.24700064,25739.0,25737.0,0.0502982]
[1693866758539,0.24700064,25739.0,25737.0,0.0252982]
[1693866758891,0.24900064,25739.0,25737.0,0.0502982]
[1693866759062,0.24900064,25739.0,25737.0,0.0252982]
[1693866759422,0.25000064,25739.0,25737.0,0.0502982]
[1693866760250,0.01744972,25738.0,25737.0,0.0502982]
[1693866760693,0.01744972,25738.0,25737.0,1.25435535]
[1693866761123,0.01744972,25738.0,25737.0,1.22935535]
[1693866761568,0.01944972,25738.0,25737.0,1.34749779]
[1693866761776,0.01944972,25738.0,25737.0,1.25435535]
[1693866761988,0.002,25738.0,25737.0,1.64100062]
[1693866762135,0.002,25738.0,25737.0,1.81444306]
[1693866762335,0.09305779,25749.0,25737.0,2.83490953]
[1693866762541,0.2813987,25748.0,25739.0,0.6410273]
[1693866762772,0.4436987,25748.0,25740.0,1.8685208]
[1693866762996,0.4436987,25748.0,25740.0,0.82842365]
[1693866763197,0.59835681,25748.0,25744.0,0.0847]
[1693866763408,0.4436987,25748.0,25744.0,0.14721838]
[1693866763807,1.2204607,25748.0,25744.0,0.0847]
[1693866764059,1.9972227,25748.0,25742.0,0.0847]
[1693866764270,2.15188081,25748.0,25743.0,0.02356]
[1693866764473,1.9972227,25748.0,25743.0,0.02356]
[1693866765046,2.0032227,25748.0,25744.0,0.002]
[1693866765266,1.2264607,25748.0,25744.0,0.002]
[1693866765457,0.22978078,25747.0,25743.0,0.08607838]
[1693866765663,0.22978078,25747.0,25743.0,0.02356]
[1693866765865,0.38298078,25747.0,25744.0,0.001]
[1693866766653,0.38298078,25747.0,25743.0,0.02456]
[1693866766852,0.38298078,25747.0,25743.0,0.02756]
[1693866767050,0.38298078,25747.0,25743.0,0.02356]
[1693866767251,0.38898078,25747.0,25743.0,0.02356]
[1693866767452,0.39098078,25747.0,25743.0,0.02356]
[1693866768794,0.25121159,25746.0,25743.0,0.02356]
[1693866769221,0.25121159,25746.0,25743.0,0.02656]
[1693866769423,0.25121159,25746.0,25743.0,0.003]
[1693866770031,0.25121159,25746.0,25742.0,0.0847]
[1693866770241,0.25121159,25746.0,25743.0,0.0967]
[1693866770999,0.25121159,25746.0,25743.0,0.0987]
[1693866775193,0.01712878,25745.0,25743.0,0.0987]
[1693866775927,0.01712878,25745.0,25743.0,0.014]
[1693866776150,0.2824969,25744.0,25743.0,0.002]
[1693866776358,0.2824969,25744.0,25743.0,0.023]
[1693866777005,0.2824969,25744.0,25743.0,0.021]
[1693866777416,0.01712878,25745.0,25743.0,0.032]
[1693866777831,0.01712878,25745.0,25743.0,0.021]
[1693866778027,0.01712878,25745.0,25743.0,0.032]
[1693866778183,0.01712878,25745.0,25743.0,0.011]
[1693866778528,0.01712878,25745.0,25743.0,0.021]
[1693866778884,0.01712878,25745.0,25743.0,0.032]
[1693866779123,0.01712878,25745.0,25743.0,0.053]
[1693866779674,0.31120746,25745.0,25743.0,0.053]
[1693866780272,0.28416546,25744.0,25743.0,0.053]
[1693866781072,0.28416546,25744.0,25743.0,0.042]
[1693866781485,0.28416546,25744.0,25743.0,0.011]
[1693866781714,0.28416546,25744.0,25743.0,0.032]
[1693866788968,0.01712878,25745.0,25743.0,0.032]
[1693866789183,0.65906792,25745.0,25743.0,0.032]
[1693866789739,0.65906792,25745.0,25743.0,0.021]
[1693866789935,0.65906792,25745.0,25740.0,0.0847]
[1693866790240,0.1589,25744.0,25743.0,0.032]
[1693866790815,0.17602799,25744.0,25743.0,0.021]
[1693866791607,0.17602799,25744.0,25740.0,0.1097]
[1693866791937,0.17602799,25744.0,25743.0,0.021]
[1693866792736,0.17602799,25744.0,25743.0,0.011]
[1693866793619,0.17602799,25744.0,25743.0,0.032]
[1693866798861,0.01712799,25744.0,25743.0,0.1167]
[1693866799061,0.01712799,25744.0,25743.0,0.52432697]
[1693866799233,0.01712799,25744.0,25743.0,0.62440697]
[1693866799440,0.52019353,25751.0,25743.0,0.62788697]
[1693866799648,0.38074186,25751.0,25748.0,0.0847]
[1693866799840,0.38074186,25751.0,25749.0,0.06251838]
[1693866800068,0.26505108,25750.0,25749.0,0.06251838]
[1693866800240,0.26505108,25750.0,25748.0,0.0847]
[1693866800865,0.26270212,25749.0,25748.0,0.0847]
[1693866801054,0.09296957,25750.0,25747.0,0.0847]
[1693866801278,0.25788493,25748.0,25747.0,0.0847]
[1693866802296,0.25788493,25748.0,25745.0,0.0847]
[1693866802491,0.25788493,25748.0,25747.0,0.02]
[1693866803320,0.25788493,25748.0,25747.0,0.03]
[1693866804470,0.49046957,25750.0,25747.0,0.03]
[1693866804684,0.87711484,25750.0,25747.0,0.03]
[1693866804856,0.21366695,25749.0,25743.0,0.01520603]
[1693866805027,0.15465811,25748.0,25745.0,0.0847]
[1693866805226,0.37726695,25749.0,25745.0,0.0847]
[1693866805430,0.01510725,25748.0,25747.0,0.009]
[1693866805852,0.01510725,25748.0,25745.0,0.0847]
[1693866806048,0.01710725,25748.0,25745.0,0.1097]
[1693866807352,0.01810725,25748.0,25745.0,0.1347]
[1693866807901,0.01610725,25748.0,25745.0,0.1097]
[1693866808292,0.01710725,25748.0,25747.0,0.018]
[1693866808492,0.01610725,25748.0,25745.0,0.1097]
[1693866808952,0.01810725,25748.0,25745.0,0.1347]
[1693866809179,0.29742666,25748.0,25745.0,0.1097]
[1693866809420,0.29842666,25748.0,25747.0,0.018]
[1693866809816,0.29742666,25748.0,25745.0,0.1097]
[1693866810182,0.29642666,25748.0,25745.0,0.0847]
[1693866811151,0.29642666,25748.0,25747.0,0.008]
[1693866811705,0.29842666,25748.0,25747.0,0.008]
[1693866812106,0.29642666,25748.0,25747.0,0.008]
[1693866812305,0.29742666,25748.0,25747.0,0.018]
[1693866812691,0.29842666,25748.0,25747.0,0.018]
[1693866813087,0.29742666,25748.0,25747.0,0.018]
[1693866813321,0.29742666,25748.0,25747.0,0.026]